bitfinex-derivatives/quotes_SOLF0:USTF0_20250117
["timestamp","ask_amount","ask_price","bid_price","bid_amount"]
[1737157881296,4.5498,219.71,219.66,1.505]
[1737157881497,4.5498,219.71,219.67,6.98594685]
[1737157881997,4.5498,219.71,219.63,3.0123]
[1737157881998,4.5507,219.67,219.63,5.9955]
[1737157882198,6.98594685,219.7,219.64,6.98594685]
[1737157883396,4.5505,219.68,219.64,11.53704685]
[1737157884403,4.5506,219.67,219.63,4.5515]
[1737157885095,4.5511,219.65,219.6,4.5519]
[1737157885301,6.98594685,219.66,219.59,6.98594685]
[1737157885500,11.68594685,219.66,219.59,6.98594685]
[1737157885701,4.5517,219.63,219.59,11.53824685]
[1737157886401,4.7,219.69,219.61,6.98594685]
[1737157886593,4.7,219.69,219.63,6.98594685]
[1737157886792,4.5506,219.67,219.63,4.5513]
[1737157886998,6.98594685,219.68,219.61,6.98594685]
[1737157887199,6.98594685,219.68,219.59,6.98594685]
[1737157887401,4.5513,219.65,219.6,4.5519]
[1737157887602,6.98594685,219.68,219.59,6.98594685]
[1737157887805,4.7,219.69,219.61,6.98594685]
[1737157888499,4.7,219.69,219.65,6.98594685]
[1737157888704,4.7,219.69,219.64,6.98594685]
[1737157889397,4.7,219.71,219.67,4.5506]
[1737157889597,4.7,219.72,219.68,6.98594685]
[1737157890197,4.7,219.72,219.66,6.98594685]
[1737157891207,9.2496,219.72,219.68,4.5503]
[1737157893115,4.5496,219.72,219.68,4.5503]
[1737157897015,4.5496,219.72,219.69,4.5502]
[1737157897519,16.45792264,219.86,219.69,6.98594685]
[1737157897820,6.98594685,219.78,219.71,6.98594685]
[1737157898316,6.98594685,219.78,219.75,4.5489]
[1737157898707,6.98594685,219.78,219.77,4.5486]
[1737157901213,6.98594685,219.78,219.76,4.5487]
[1737157901418,4.548,219.8,219.76,4.5487]
[1737157901619,11.53394685,219.8,219.76,4.5487]
[1737157901818,11.53394685,219.8,219.73,6.98594685]
[1737157902117,11.53394685,219.8,219.77,4.5485]
[1737157905020,6.98594685,219.8,219.78,4.5482]
[1737157905924,6.98594685,219.8,219.74,1.4662]
[1737157906124,6.98594685,219.8,219.79,4.5482]
[1737157906525,6.98594685,219.81,219.79,4.5482]
[1737157906725,6.98594685,219.81,219.8,4.5479]
[1737157907027,6.98594685,219.81,219.75,6.98594685]
[1737157907821,6.98594685,219.81,219.78,4.5482]
[1737157908023,4.5476,219.82,219.77,6.98594685]
[1737157909217,4.5476,219.82,219.79,4.548]
[1737157910224,4.5476,219.82,219.74,2.9092]
[1737157910426,4.5476,219.82,219.78,4.5483]
[1737157910723,6.98594685,219.79,219.74,1.4662]
[1737157910923,6.98594685,219.77,219.74,1.4662]
[1737157911125,6.98594685,219.75,219.74,1.4662]
[1737157911727,11.53494685,219.75,219.74,1.4662]
[1737157913631,11.53494685,219.75,219.72,4.5495]
[1737157919434,4.549,219.75,219.72,4.5495]
[1737157920735,2.83792264,219.86,219.73,6.98594685]
[1737157920936,6.98594685,219.78,219.66,1.4943]
[1737157921238,11.53484685,219.76,219.72,4.5495]
[1737157921432,6.98594685,219.76,219.72,4.5495]
[1737157923337,4.5492,219.75,219.72,4.5495]
[1737157926735,6.98594685,219.76,219.66,1.4943]
[1737157927035,6.98594685,219.71,219.66,1.4943]
[1737157927237,6.98594685,219.69,219.66,1.4943]
[1737157927543,4.66,219.72,219.6,1.4514]
[1737157927544,6.98594685,219.67,219.6,1.4514]
[1737157927741,6.98594685,219.64,219.6,1.4514]
[1737157928638,4.5511,219.65,219.6,1.4514]
[1737157928832,4.66,219.72,219.62,6.98594685]
[1737157929038,6.98594685,219.68,219.6,8.43734685]
[1737157929244,6.98594685,219.66,219.6,8.43734685]
[1737157929639,6.98594685,219.66,219.6,1.4514]
[1737157930035,4.66,219.72,219.61,4.5517]
[1737157930243,4.66,219.72,219.62,6.98594685]
[1737157930437,6.98594685,219.7,219.62,6.98594685]
[1737157931142,11.53604685,219.7,219.65,4.5511]
[1737157931536,4.5501,219.7,219.65,4.5511]
[1737157931734,11.53604685,219.7,219.65,4.5511]
[1737157931943,4.5503,219.69,219.65,4.5511]
[1737157936346,6.98594685,219.68,219.6,1.4514]
[1737157936548,6.98594685,219.68,219.6,8.43734685]
[1737157937348,4.5509,219.66,219.62,4.5515]
[1737157938248,11.53684685,219.66,219.62,4.5515]
[1737157939851,4.5509,219.66,219.62,4.5515]
[1737157940754,4.5509,219.66,219.63,4.5514]
[1737157942555,11.53654685,219.68,219.64,4.5512]
[1737157942855,6.98594685,219.66,219.52,21.23914624]
[1737157943053,6.98594685,219.66,219.58,6.98594685]
[1737157943452,4.5514,219.64,219.61,4.5519]
[1737157943850,6.98594685,219.66,219.61,4.5519]
[1737157944049,4.5513,219.64,219.61,4.5519]
[1737157949151,194.0,219.78,219.62,6.98594685]
[1737157949360,6.98594685,219.72,219.64,6.98594685]
[1737157949749,4.64,219.77,219.64,6.98594685]
[1737157949953,6.98594685,219.71,219.64,6.98594685]
[1737157950155,11.53594685,219.71,219.67,4.5506]
[1737157950551,4.55,219.71,219.67,4.5506]
[1737157950757,11.53594685,219.71,219.67,4.5506]
[1737157951157,4.5501,219.7,219.67,4.5506]
[1737157957369,6.98594685,219.69,219.67,4.5506]
[1737157958566,4.5501,219.7,219.67,4.5506]
[1737157958770,6.98594685,219.69,219.67,4.5506]
[1737157967068,6.98594685,219.69,219.55,34.29258341]
[1737157967271,4.5513,219.64,219.61,4.5518]
[1737157967472,4.64,219.72,219.62,6.98594685]
[1737157967673,6.98594685,219.69,219.62,6.98594685]
[1737157968575,4.5505,219.68,219.65,4.5509]
[1737157985979,4.5508,219.67,219.62,1.5651]
[1737157986182,6.98594685,219.68,219.62,1.5651]
[1737157986383,6.98594685,219.7,219.62,1.5651]
[1737157986979,4.5506,219.68,219.65,4.551]
[1737157987179,4.5506,219.68,219.62,1.5651]
[1737157988087,6.98594685,219.7,219.64,4.5512]
[1737157988278,4.5507,219.67,219.64,4.5512]
[1737157998289,6.98594685,219.7,219.62,1.5651]
[1737157999289,4.5506,219.68,219.64,4.5511]
[1737158000191,6.98594685,219.71,219.62,8.55104685]
[1737158000388,71.0,219.78,219.66,6.98594685]
[1737158000581,6.98594685,219.75,219.66,6.98594685]
[1737158000786,4.5493,219.74,219.7,4.5498]
[1737158001993,11.53524685,219.74,219.7,4.5498]
[1737158002387,6.98594685,219.74,219.66,6.98594685]
[1737158002587,4.5496,219.72,219.68,4.5503]
[1737158002987,6.98594685,219.72,219.63,2.924]
[1737158003187,4.5502,219.69,219.64,6.98594685]
[1737158004191,4.5502,219.69,219.66,4.5508]
[1737158004592,6.98594685,219.72,219.66,4.5508]
[1737158004789,6.98594685,219.72,219.66,6.98594685]
[1737158005091,77.98594685,219.78,219.7,6.98594685]
[1737158005684,77.98594685,219.78,219.63,2.924]
[1737158005685,6.98594685,219.74,219.63,2.924]
[1737158005895,6.98594685,219.74,219.67,6.98594685]
[1737158006288,4.5496,219.73,219.68,4.5502]
[1737158006487,4.5496,219.73,219.67,6.98594685]
[1737158007791,45.39783458,219.8,219.62,1.5651]
[1737158007995,1.90724389,219.78,219.62,1.5651]
[1737158008188,6.98594685,219.66,219.62,1.5651]
[1737158008593,6.98594685,219.66,219.62,6.1168]
[1737158009798,4.5506,219.67,219.62,6.1168]
[1737158013199,6.98594685,219.68,219.64,4.5512]
[1737158015002,11.53644685,219.68,219.64,4.5512]
[1737158015804,4.5507,219.67,219.62,6.1166]
[1737158017403,4.5507,219.67,219.63,4.5514]
[1737158019711,6.98594685,219.69,219.62,1.5651]
[1737158020204,6.98594685,219.69,219.63,6.98594685]
[1737158020412,6.98594685,219.71,219.63,6.98594685]
[1737158020707,4.72,219.74,219.67,6.98594685]
[1737158022211,11.53554685,219.73,219.68,4.5504]
[1737158022811,6.98594685,219.73,219.68,4.5504]
[1737158023106,4.5497,219.72,219.68,4.5504]
[1737158023304,6.98594685,219.71,219.64,4.5511]
[1737158023609,4.5503,219.69,219.64,6.98594685]
[1737158025214,4.5503,219.69,219.65,4.5509]
[1737158025611,6.98594685,219.68,219.62,1.5651]
[1737158027112,4.5509,219.66,219.62,6.1168]
[1737158027710,4.5509,219.66,219.62,13.10274685]
[1737158029414,4.5509,219.66,219.62,6.1168]
[1737158029908,4.5509,219.66,219.62,13.10274685]
[1737158031807,4.5509,219.66,219.56,2.9478]
[1737158031808,4.551,219.66,219.61,4.5517]
[1737158032014,4.551,219.66,219.61,11.53764685]
[1737158032211,4.551,219.66,219.61,6.98594685]
[1737158032816,4.551,219.66,219.62,4.5516]
[1737158034507,4.5511,219.65,219.62,4.5516]
[1737158039114,4.5511,219.65,219.63,6.98594685]
[1737158039619,4.5511,219.65,219.62,4.5516]
[1737158040718,6.98594685,219.67,219.57,1.4525]
[1737158041021,4.5514,219.64,219.6,4.552]
[1737158042825,4.5509,219.66,219.62,4.5516]
[1737158043031,6.98594685,219.67,219.6,6.98594685]
[1737158044728,4.5513,219.65,219.61,4.5519]
[1737158047031,6.98594685,219.67,219.61,4.5519]
[1737158047231,4.5513,219.64,219.61,4.5519]
[1737158049131,6.98594685,219.75,219.62,6.98594685]
[1737158049330,6.98594685,219.73,219.67,6.98594685]
[1737158050233,6.98594685,219.73,219.57,1.4525]
[1737158050234,6.98594685,219.73,219.65,6.98594685]
[1737158050433,4.5501,219.7,219.66,4.5507]
[1737158054236,4.5501,219.7,219.67,4.5506]
[1737158059143,6.98594685,219.69,219.63,4.5514]
[1737158059339,6.98594685,219.67,219.63,4.5514]
[1737158060142,4.5509,219.66,219.63,4.5514]
[1737158062244,4.5509,219.66,219.6,6.98594685]
[1737158062449,4.5509,219.66,219.62,4.5516]
[1737158069944,4.5509,219.66,219.62,11.53754685]
[1737158074249,1.4373,219.77,219.62,4.5516]
[1737158074446,4.5511,219.65,219.62,4.5516]
[1737158083152,13.738,219.76,219.61,6.98594685]
[1737158083153,6.98594685,219.68,219.61,6.98594685]
[1737158083355,4.5509,219.66,219.63,4.5514]
[1737158097369,6.98594685,219.64,219.55,6.33435391]
[1737158097667,4.64,219.65,219.55,6.33435391]
[1737158097668,4.5522,219.6,219.55,10.88745391]
[1737158098268,4.5522,219.6,219.55,4.5531]
[1737158098469,4.5522,219.6,219.55,11.53904685]
[1737158098670,4.5522,219.6,219.55,6.98594685]
[1737158099366,4.5522,219.6,219.53,6.98594685]
[1737158100167,1.5235,219.7,219.53,6.98594685]
[1737158100371,11.53754685,219.63,219.55,6.98594685]
[1737158100973,4.5516,219.63,219.57,6.98594685]
[1737158101572,11.53754685,219.63,219.55,6.98594685]
[1737158102074,11.53754685,219.63,219.58,4.5524]
[1737158102771,4.5529,219.57,219.52,4.5536]
[1737158103373,4.5527,219.57,219.52,4.5536]
[1737158105473,4.5527,219.57,219.53,4.5535]
[1737158106066,4.5525,219.58,219.53,4.5535]
[1737158106274,4.7,219.61,219.53,6.98594685]
[1737158107375,6.98594685,219.62,219.53,6.98594685]
[1737158107766,4.5519,219.61,219.56,4.5527]
[1737158107972,4.68,219.63,219.57,6.98594685]
[1737158108472,11.66594685,219.63,219.59,4.5521]
[1737158109064,16.21744685,219.63,219.59,4.5521]
[1737158111475,11.53744685,219.63,219.59,4.5521]
[1737158116879,4.68,219.67,219.64,4.5512]
[1737158116880,11.53664685,219.67,219.64,4.5512]
[1737158118082,1.4936,219.76,219.61,6.98594685]
[1737158118272,4.5504,219.69,219.66,4.5508]
[1737158118583,6.98594685,219.7,219.61,6.98594685]
[1737158118779,4.5505,219.68,219.65,4.551]
[1737158119871,11.53644685,219.68,219.65,4.551]
[1737158120682,6.98594685,219.68,219.66,4.5507]
[1737158122286,4.68,219.74,219.62,4.5517]
[1737158122478,6.98594685,219.66,219.59,6.98594685]
[1737158122884,6.98594685,219.66,219.61,4.5519]
[1737158123183,6.98594685,219.66,219.59,6.98594685]
[1737158123586,4.5503,219.69,219.61,6.98594685]
[1737158125187,11.53594685,219.7,219.63,6.98594685]
[1737158125688,6.98594685,219.7,219.63,6.98594685]
[1737158126687,4.5498,219.71,219.63,6.98594685]
[1737158126882,11.53574685,219.71,219.63,6.98594685]
[1737158127086,11.53574685,219.71,219.67,4.5506]
[1737158127690,6.98594685,219.71,219.67,4.5506]
[1737158127890,4.55,219.7,219.67,4.5506]
[1737158128295,6.98594685,219.71,219.65,6.98594685]
[1737158128493,6.98594685,219.71,219.68,4.5503]
[1737158130992,11.53584685,219.71,219.68,4.5503]
[1737158131292,6.98594685,219.69,219.57,2.9941]
[1737158131499,6.98594685,219.67,219.64,4.5511]
[1737158134100,4.5506,219.68,219.64,4.5511]
[1737158134791,4.5511,219.65,219.61,4.5517]
[1737158136195,4.5509,219.66,219.62,4.5516]
[1737158136396,6.98594685,219.69,219.61,6.98594685]
[1737158136596,6.98594685,219.69,219.57,2.9941]
[1737158136797,6.98594685,219.69,219.61,6.98594685]
[1737158137503,4.5506,219.67,219.63,4.5513]
[1737158138503,4.5506,219.67,219.61,6.98594685]
[1737158138504,4.5505,219.68,219.64,4.5512]
[1737158139600,11.53664685,219.67,219.63,4.5514]
[1737158140003,6.98594685,219.67,219.59,6.98594685]
[1737158140500,6.98594685,219.67,219.57,2.9941]
[1737158140802,4.68,219.73,219.57,2.9941]
[1737158140803,6.98594685,219.63,219.57,2.9941]
[1737158141009,6.98594685,219.63,219.57,1.5423]
[1737158141604,4.5519,219.62,219.57,4.5525]
[1737158141907,4.5519,219.62,219.56,1.4869]
[1737158142905,6.98594685,219.63,219.56,1.4869]
[1737158143106,6.98594685,219.61,219.56,1.4869]
[1737158143809,4.5522,219.6,219.56,1.4869]
[1737158145209,4.5522,219.6,219.56,6.0397]
[1737158149008,79.1719,219.72,219.59,6.98594685]
[1737158149211,6.98594685,219.7,219.63,6.98594685]
[1737158150013,78.1,219.72,219.56,1.4869]
[1737158150014,89.76594685,219.72,219.65,6.98594685]
[1737158150510,89.76594685,219.72,219.67,6.98594685]
[1737158150706,6.98594685,219.74,219.67,6.98594685]
[1737158151106,11.53534685,219.74,219.68,4.5502]
[1737158151310,11.53534685,219.74,219.67,6.98594685]
[1737158152015,4.5494,219.73,219.69,4.5502]
[1737158152209,6.98594685,219.74,219.69,4.5502]
[1737158152617,11.53514685,219.74,219.69,4.5502]
[1737158153320,4.5494,219.73,219.69,4.5502]
[1737158155411,6.98594685,219.74,219.69,4.5502]
[1737158156318,11.53524685,219.74,219.69,4.5502]
[1737158157020,4.5494,219.73,219.69,4.5502]
[1737158160121,11.53514685,219.74,219.69,4.5502]
[1737158161523,4.5494,219.73,219.69,4.5502]
[1737158161723,6.98594685,219.72,219.56,7.82125391]
[1737158161922,6.98594685,219.7,219.64,4.5511]
[1737158162224,4.5504,219.69,219.56,7.82125391]
[1737158162524,4.5504,219.69,219.65,11.53684685]
[1737158163524,4.5504,219.69,219.65,4.5509]
[1737158163724,6.98594685,219.7,219.65,4.5509]
[1737158164728,6.98594685,219.7,219.66,4.5508]
[1737158165718,6.98594685,219.7,219.67,4.5506]
[1737158167731,6.98594685,219.7,219.68,4.5503]
[1737158168230,6.98594685,219.71,219.69,4.5502]
[1737158168532,4.66,219.76,219.63,6.98594685]
[1737158168731,6.98594685,219.72,219.69,4.5501]
[1737158170132,11.53564685,219.72,219.69,4.5501]
[1737158171531,6.98594685,219.72,219.65,6.98594685]
[1737158171732,4.5498,219.71,219.67,4.5506]
[1737158172426,4.5498,219.71,219.68,4.5504]
[1737158174032,6.98594685,219.72,219.68,4.5504]
[1737158174626,6.98594685,219.72,219.65,6.98594685]
[1737158174832,11.53574685,219.72,219.69,4.5502]
[1737158177231,4.64,219.77,219.69,6.98594685]
[1737158177437,11.53484685,219.76,219.69,6.98594685]
[1737158179127,11.53484685,219.76,219.73,4.5494]
[1737158179343,4.5486,219.78,219.71,6.98594685]
[1737158179536,11.53454685,219.78,219.71,6.98594685]
[1737158179733,6.98594685,219.74,219.62,9.1032]
[1737158179937,4.64,219.79,219.59,2.9321]
[1737158179938,6.98594685,219.71,219.64,6.98594685]
[1737158181633,6.98594685,219.71,219.65,4.551]
[1737158181634,11.53574685,219.71,219.65,4.551]
[1737158182838,4.55,219.7,219.65,4.551]
[1737158183436,4.55,219.7,219.64,6.98594685]
[1737158183637,11.53574685,219.71,219.66,4.5508]
[1737158184630,6.98594685,219.71,219.64,6.98594685]
[1737158184836,6.98594685,219.71,219.62,6.98594685]
[1737158185035,6.98594685,219.67,219.59,2.9321]
[1737158185535,4.5514,219.64,219.59,7.4843]
[1737158186039,4.5514,219.64,219.6,4.552]
[1737158187238,6.98594685,219.67,219.59,2.9321]
[1737158187439,4.5511,219.65,219.61,4.5518]
[1737158194345,4.5511,219.65,219.62,4.5516]
[1737158200844,4.5509,219.66,219.62,4.5516]
[1737158201146,4.64,219.69,219.56,1.4869]
[1737158201147,6.98594685,219.63,219.56,1.4869]
[1737158201347,6.98594685,219.6,219.53,6.98594685]
[1737158201646,6.98594685,219.58,219.51,6.98594685]
[1737158201850,6.98594685,219.58,219.5,7.80275391]
[1737158201851,4.5524,219.59,219.53,6.98594685]
[1737158202448,4.5524,219.59,219.55,4.5531]
[1737158204443,11.53804685,219.6,219.57,4.5527]
[1737158204742,4.64,219.61,219.57,4.5527]
[1737158205541,9.1919,219.61,219.57,4.5527]
[1737158210154,4.5519,219.61,219.57,4.5527]
[1737158211455,6.98594685,219.62,219.57,4.5527]
[1737158211655,4.5521,219.6,219.57,4.5527]
[1737158212558,4.5514,219.64,219.61,4.5518]
[1737158212858,4.64,219.65,219.59,6.98594685]
[1737158213057,6.98594685,219.66,219.59,6.98594685]
[1737158213258,6.98594685,219.66,219.61,6.98594685]
[1737158213457,6.98594685,219.66,219.63,4.5513]
[1737158213758,11.53654685,219.67,219.61,6.98594685]
[1737158214155,11.53654685,219.67,219.63,4.5514]
[1737158214451,4.64,219.68,219.61,6.98594685]
[1737158214763,6.98594685,219.69,219.66,4.5508]
[1737158216153,11.53624685,219.69,219.66,4.5508]
[1737158216659,11.53624685,219.69,219.52,9.1075]
[1737158216861,11.53624685,219.69,219.65,4.551]
[1737158217463,4.5503,219.69,219.65,4.551]
[1737158218067,4.5503,219.69,219.62,6.98594685]
[1737158218362,4.5503,219.69,219.66,4.5508]
[1737158219064,4.5503,219.69,219.65,4.551]
[1737158221160,6.98594685,219.68,219.53,6.33435391]
[1737158221364,4.5511,219.65,219.61,4.5518]
[1737158221556,6.98594685,219.64,219.53,6.33435391]
[1737158221863,4.5515,219.63,219.59,4.5521]
[1737158225467,4.5515,219.63,219.57,6.98594685]
[1737158225667,4.5515,219.63,219.6,4.5521]
[1737158226559,6.98594685,219.64,219.49,3.1206]
[1737158226763,4.5519,219.61,219.58,4.5524]
[1737158227067,6.98594685,219.6,219.49,3.1206]
[1737158227363,6.98594685,219.6,219.53,6.98594685]
[1737158228067,11.53804685,219.6,219.56,4.5528]
[1737158229166,11.53804685,219.6,219.57,4.5527]
[1737158232168,4.5521,219.6,219.57,4.5527]
[1737158233367,4.5523,219.59,219.57,4.5527]
[1737158243675,13.66,219.79,219.58,6.98594685]
[1737158243875,6.98594685,219.75,219.67,6.98594685]
[1737158244071,4.64,219.74,219.67,6.98594685]
[1737158244574,4.5496,219.72,219.68,4.5502]
[1737158244874,6.98594685,219.71,219.63,6.98594685]
[1737158245275,4.64,219.74,219.64,4.5511]
[1737158245276,4.5504,219.68,219.64,4.5511]
[1737158246177,6.98594685,219.67,219.52,4.64]
[1737158246375,6.98594685,219.65,219.58,6.98594685]
[1737158246671,11.62594685,219.65,219.58,6.98594685]
[1737158248276,11.62594685,219.65,219.6,4.552]
[1737158248277,4.5513,219.64,219.6,4.552]
[1737158248477,11.62594685,219.65,219.58,6.98594685]
[1737158248675,4.5517,219.63,219.59,4.5521]
[1737158249479,4.5517,219.63,219.58,6.98594685]
[1737158249679,4.5517,219.63,219.6,4.5521]
[1737158250474,4.5513,219.64,219.6,4.5521]
[1737158255490,4.5515,219.63,219.6,4.5521]
[1737158256894,4.5521,219.6,219.57,4.5526]
[1737158263492,4.64,219.65,219.5,1.4684]
[1737158263493,4.5527,219.58,219.5,1.4684]
[1737158263791,6.98594685,219.59,219.5,1.4684]
[1737158264088,6.98594685,219.59,219.51,6.98594685]
[1737158264089,4.5529,219.57,219.51,6.98594685]
[1737158264288,6.98594685,219.59,219.51,6.98594685]
[1737158264489,6.98594685,219.57,219.51,6.98594685]
[1737158266098,4.5531,219.56,219.53,4.5535]
[1737158270003,6.98594685,219.57,219.51,6.98594685]
[1737158270297,4.64,219.56,219.5,1.4684]
[1737158270800,6.98594685,219.55,219.5,1.4684]
[1737158271102,4.5535,219.54,219.51,4.5539]
[1737158271503,6.98594685,219.55,219.51,4.5539]
[1737158271701,6.98594685,219.55,219.49,1.5497]
[1737158271899,4.5536,219.53,219.49,6.1039]
[1737158272503,6.98594685,219.53,219.43,1.5731]
[1737158272700,4.5542,219.5,219.46,11.54094685]
[1737158273798,4.5542,219.5,219.46,6.98594685]
[1737158273996,4.5542,219.5,219.47,4.5547]
[1737158274503,4.64,219.54,219.5,4.5541]
[1737158274704,4.5535,219.64,219.5,6.98594685]
[1737158274907,11.62594685,219.59,219.43,1.5731]
[1737158275104,11.62594685,219.59,219.51,6.98594685]
[1737158275706,4.5531,219.56,219.52,4.5537]
[1737158276104,11.62594685,219.59,219.51,6.98594685]
[1737158276301,4.5534,219.54,219.51,6.98594685]
[1737158277307,4.5534,219.54,219.5,4.554]
[1737158279209,4.5534,219.54,219.51,4.5539]
[1737158281112,4.5532,219.55,219.51,4.5539]
[1737158281413,4.5532,219.55,219.52,4.5537]
[1737158282108,4.64,219.59,219.49,6.98594685]
[1737158282318,4.5539,219.52,219.48,4.5544]
[1737158282509,6.98594685,219.53,219.48,4.5544]
[1737158282711,6.98594685,219.51,219.48,4.5544]
[1737158284221,4.554,219.52,219.48,4.5544]
[1737158284712,4.554,219.52,219.49,4.5543]
[1737158284912,6.98594685,219.53,219.47,6.98594685]
[1737158285312,6.98594685,219.53,219.43,1.5731]
[1737158285514,6.98594685,219.53,219.44,6.98594685]
[1737158285712,4.64,219.59,219.46,6.98594685]
[1737158285912,6.98594685,219.55,219.46,6.98594685]
[1737158286313,4.5534,219.54,219.5,4.5541]
[1737158286513,4.5534,219.54,219.48,6.98594685]
[1737158287712,4.5534,219.54,219.49,4.5542]
[1737158287912,4.5534,219.54,219.48,6.98594685]
[1737158289219,4.5534,219.54,219.51,4.5539]
[1737158291621,6.98594685,219.57,219.48,6.98594685]
[1737158291817,4.5532,219.55,219.48,6.98594685]
[1737158292318,6.98594685,219.57,219.48,6.98594685]
[1737158292513,6.98594685,219.57,219.51,4.5538]
[1737158292514,4.5534,219.54,219.51,4.5538]
[1737158299226,4.5536,219.53,219.51,4.5538]
[1737158299623,4.5539,219.52,219.46,6.98594685]
[1737158299823,6.98594685,219.55,219.46,6.98594685]
[1737158300525,4.5542,219.5,219.43,1.5731]
[1737158300824,4.5542,219.5,219.45,6.98594685]
[1737158301324,4.5542,219.5,219.47,4.5547]
[1737158301526,4.5544,219.49,219.47,4.5547]
[1737158302122,4.5544,219.49,219.46,4.555]
[1737158304229,4.554,219.51,219.45,11.54114685]
[1737158304529,6.98594685,219.52,219.45,11.54114685]
[1737158304727,4.64,219.56,219.45,11.54114685]
[1737158304928,4.5545,219.49,219.45,11.54114685]
[1737158305526,4.5545,219.49,219.46,4.555]
[1737158307832,78.16,219.6,219.47,6.98594685]
[1737158308027,6.98594685,219.57,219.5,6.98594685]
[1737158308425,4.5534,219.54,219.5,6.98594685]
[1737158308933,4.5534,219.54,219.5,11.53994685]
[1737158309132,4.5534,219.54,219.5,4.554]
[1737158310037,4.5534,219.54,219.51,4.5538]
[1737158315041,6.98594685,219.55,219.5,4.5541]
[1737158315042,4.5536,219.53,219.5,4.5541]
[1737158319541,4.5539,219.52,219.47,4.5547]
[1737158319743,6.98594685,219.53,219.43,8.55904685]
[1737158320141,4.5543,219.5,219.46,4.5548]
[1737158320544,4.5543,219.5,219.45,6.98594685]
[1737158322139,4.5543,219.5,219.47,4.5547]
[1737158326350,11.53994685,219.51,219.47,4.5547]
[1737158326744,11.53994685,219.51,219.48,4.5545]
[1737158328852,6.98594685,219.51,219.48,4.5545]
[1737158329150,4.5542,219.5,219.48,4.5545]
[1737158332555,11.53994685,219.51,219.48,4.5545]
[1737158342865,6.98594685,219.49,219.48,4.5545]
[1737158343563,6.98594685,219.49,219.47,4.5546]
[1737158344659,6.98594685,219.49,219.48,4.5546]
[1737158345565,4.5542,219.5,219.48,4.5546]
[1737158350665,4.64,219.53,219.5,4.554]
[1737158351266,9.1936,219.53,219.5,4.554]
[1737158351666,9.193,219.56,219.52,4.5536]
[1737158351867,11.53894685,219.56,219.52,4.5536]
[1737158353368,4.553,219.56,219.52,4.5536]
[1737158353574,11.53894685,219.56,219.52,4.5536]
[1737158354763,4.5531,219.55,219.52,4.5536]
[1737158357564,6.98594685,219.56,219.49,6.98594685]
[1737158357869,4.5533,219.54,219.51,4.5539]
[1737158359372,11.53924685,219.54,219.51,4.5539]
[1737158360270,4.5541,219.51,219.47,4.5546]
[1737158360871,4.5542,219.5,219.47,4.5546]
[1737158361574,4.5542,219.5,219.44,6.98594685]
[1737158361774,4.5542,219.5,219.48,4.5546]
[1737158361978,4.554,219.51,219.48,4.5546]
[1737158365678,4.5536,219.53,219.5,4.5541]
[1737158365977,11.53954685,219.53,219.5,4.5541]
[1737158374583,4.5536,219.53,219.5,4.5541]
[1737158380296,11.53954685,219.53,219.5,4.5541]
[1737158381992,4.5536,219.53,219.5,4.5541]
[1737158385101,4.5535,219.64,219.43,1.5731]
[1737158385397,0.83695336,219.63,219.43,1.5731]
[1737158386096,7.27263507,219.63,219.43,1.5731]
[1737158386296,0.83695336,219.62,219.43,1.5731]
[1737158387098,0.83695046,219.61,219.43,1.5731]
[1737158387299,6.43568171,219.63,219.43,1.5731]
[1737158387599,0.83697649,219.62,219.43,1.5731]
[1737158389598,0.83696043,219.61,219.43,1.5731]
[1737158389799,6.43568171,219.63,219.43,1.5731]
[1737158390000,0.83695336,219.62,219.43,1.5731]
[1737158390601,0.83695336,219.61,219.43,1.5731]
[1737158390799,4.5535,219.64,219.43,1.5731]
[1737158391000,0.83695678,219.63,219.43,1.5731]
[1737158392200,0.8369565,219.62,219.43,1.5731]
[1737158392501,0.8369565,219.61,219.43,1.5731]
[1737158392803,4.5535,219.64,219.43,1.5731]
[1737158393103,0.83695309,219.63,219.43,1.5731]
[1737158399303,0.83695309,219.63,219.44,4.45573652]